Cogmind - Beta 16 @@@ ROGUE MODE // 2025.12.27 @ 16:36:55 Player: Bity Result: Destroyed by S-27 Virus with Autogun Performance ------------- Evolutions (3) 1500 Regions Visited (8) 1600 Robots Destroyed (60) 300 Value Destroyed (1755) 1755 Prototype IDs (0) 0 Alien Tech Used (0) 0 Bonus (1207) 1207 TOTAL SCORE: 6362 Bonus ------- Follower Combat Kills 7 Entered Garrisons 200 Used RIF Installer 500 Entered DSFs 500 Cogmind --------- Core Integrity 0/700 Matter 14/300 Energy 100/100 System Corruption 0% Temperature Cool (0) Movement Flying (115) Ox1 Location -7/Garrison Parts ------- > --- POWER (2) -------- (None) > --- PROPULSION (4) --- VTOL Module > --- UTILITY (5) ------ Improved Signal Interpreter Targeting Computer Armor Integrity Analyzer Hacking Suite > --- WEAPON (2) ------- Autogun Gauss Rifle > --- INVENTORY (5) ---- Light Deuterium Engine Improved Terrain Scanner Relay Coupler [Sentry] (26) Peak State ------------ > --- POWER ------------ Light Nuclear Core Improved Deuterium Engine > --- PROPULSION ------- Aluminum Leg > --- UTILITY ---------- Large Storage Unit Compact Matter Pod Improved Signal Interpreter Targeting Computer Improved Medium Armor Plating > --- WEAPON ----------- Gauss Cannon Bore Cannon > --- INVENTORY -------- Deuterium Engine Light Deuterium Engine Light Deuterium Engine Sensor Array Improved Terrain Scanner Improved Terrain Scan Processor Armor Integrity Analyzer Energy Filter Hacking Suite Heavy Laser Gauss Rifle Flak Gun Flak Gun Flak Gun Improved Datajack [Rating: 34] Favorites ----------- Power Light Nuclear Core Engine Ion Engine Power Core Light Nuclear Core Propulsion Light Treads Treads Light Treads Leg Aluminum Leg Wheel Wheel Flight Unit VTOL Module Utility Large Storage Unit Device Seismic Detector Storage Large Storage Unit Processor Signal Interpreter Hackware Hacking Suite Protection Light Armor Plating Weapon Light Assault Rifle Energy Gun Heavy Laser Ballistic Gun Light Assault Rifle Ballistic Cannon Bore Cannon Special Weapon Mining Laser Impact Weapon Hammer Special Melee Weapon Improved Datajack Build | -11 -10 -10 -10 -9 -8 -7 -7 -7 ------- Run | Yrd Mat Min Exi Min Mat Fac DSF Gar Slots Evolved 6 | . . . . . 4 2 . . Power 1 | . . . . . 1 . . . Propulsion 2 | . . . . . . 2 . . Utility 3 | . . . . . 3 . . . Weapon . | . . . . . . . . . Parts Attached 84 | 4 10 6 1 2 28 2 11 20 Power 18 | . 2 2 . 1 6 . 4 3 Engine 10 | . 2 1 . 1 3 . 2 1 Core 8 | . . 1 . . 3 . 2 2 Reactor . | . . . . . . . . . Propulsion 16 | 2 . 2 . . 3 2 2 5 Treads 4 | 2 . . . . 2 . . . Leg 1 | . . . . . . . 1 . Wheel 6 | . . 2 . . 1 2 1 . Hover . | . . . . . . . . . Flight 5 | . . . . . . . . 5 Utility 24 | 1 4 . 1 1 11 . 2 4 Device 6 | 1 . . . . 4 . . 1 Storage 5 | . 2 . 1 . 1 . 1 . Processor 6 | . 2 . . . 3 . . 1 Hackware 2 | . . . . . . . . 2 Protection 5 | . . . . 1 3 . 1 . Artifact . | . . . . . . . . . Weapon 26 | 1 4 2 . . 8 . 3 8 Energy Gun 1 | . . . . . . . . 1 Energy Cannon . | . . . . . . . . . Ballistic Gun 16 | 1 1 1 . . 7 . . 6 Ballistic Cannon 6 | . 1 1 . . 1 . 3 . Launcher . | . . . . . . . . . Special Weapon 1 | . 1 . . . . . . . Impact Weapon 1 | . 1 . . . . . . . Slashing Weapon . | . . . . . . . . . Piercing Weapon . | . . . . . . . . . Special Melee Weapon 1 | . . . . . . . . 1 Unidentified Prototypes . | . . . . . . . . . Parts Lost 39 | . 2 5 . . 8 . 16 8 Power 11 | . 1 2 . . 2 . 3 3 Propulsion 14 | . . 2 . . 2 . 6 4 Utility 9 | . 1 . . . 4 . 4 . Weapon 5 | . . 1 . . . . 3 1 Highest Loss Streak 7 | . 1 3 . . 4 . 7 6 To Critical Strikes . | . . . . . . . . . Average Backups 13 | 6 13 13 14 14 14 14 14 8 Power . | 1 . 1 1 1 . . 1 1 Propulsion 2 | 4 3 2 2 2 3 1 . . Utility 5 | . 5 8 8 7 4 9 7 2 Weapon 3 | 1 3 2 3 3 5 4 3 3 Tool/Special . | . . . . . . . . . Unused Backups 23 | 6 4 . . . 6 . 2 5 Power 4 | 1 1 . . . . . . 2 Propulsion 6 | 3 1 . . . 2 . . . Utility 9 | 1 2 . . . 1 . 2 3 Weapon 4 | 1 . . . . 3 . . . Tool/Special . | . . . . . . . . . Average Slot Usage (%) 91 | . 99 96 87 99 95 99 74 57 Engine 10 | . 13 10 14 14 9 7 7 1 Core 3 | . . 1 . . 7 7 5 6 Treads 11 | . 28 2 . . 7 15 5 . Wheel 9 | . . 23 28 28 9 14 5 . Device 6 | . 5 . . . 16 . . . Storage 11 | . 14 14 14 14 9 7 9 4 Processor 12 | . 8 14 14 . 13 23 17 22 Protection 2 | . . . . 13 3 7 4 . Ballistic Gun 11 | . 17 14 2 . 10 15 1 3 Ballistic Cannon 4 | . . 14 2 27 3 . 11 . Impact Weapon 4 | . 9 . 11 . 4 . . . Peak Build Rating 34 | 8 8 12 12 12 32 32 34 32 Average Rating 15 | 6 7 8 8 11 23 31 29 22 On Entrance 14 | 6 8 8 12 8 12 30 32 13 Avg Prop Armor Cover (%) 5 | . . . . . . 4 7 13 Naked Turns . | . . . . . . . . . Heaviest Build 59 | 11 29 34 34 40 50 47 59 33 Greatest Support 40 | 40 40 20 20 20 40 40 40 12 Greatest Overweight (x) 19 | . . 1 1 1 3 1 19 9 Average Overweight (x) . | . . 1 1 1 1 1 3 . Largest Inventory Capacity 20 | 8 20 15 15 15 15 15 15 15 Average Capacity 14 | 8 14 15 15 15 15 15 15 10 Most Carried 15 | 8 15 15 15 15 15 15 15 15 Average Carried 13 | 6 13 13 14 13 14 14 14 8 Final Capacity 15 | 8 15 15 15 15 15 15 15 5 Final Carried 15 | 8 15 14 15 14 15 15 15 3 Class Distribution -------------------- 65% | Mutant 33% | Scavenger-Mutant Dominant Class ---------------- Mutant | -10/Materials Mutant | -10/Mines Mutant | -10/Exiles Mutant | -9/Mines Scavenger-Mutant | -8/Materials Scavenger-Mutant | -7/Factory Mutant | -7/DSF Mutant | -7/Garrison Resources | -11 -10 -10 -10 -9 -8 -7 -7 -7 ----------- Run | Yrd Mat Min Exi Min Mat Fac DSF Gar Matter Collected 2117 | 220 223 204 14 40 815 . 264 337 Remotely 98 | . . . . . 98 . . . Salvage Created 2050 | 84 328 290 . . 932 . 195 221 Parts 112 | 11 22 10 . . 46 . 11 12 Haulers Intercepted 3 | . 1 . . . 1 . 1 . Recyclers Shooed 2 | 1 . . . . 1 . . . Parts Field Recycled . | . . . . . . . . . Retrieved Matter . | . . . . . . . . . Parts Self-Destructed . | . . . . . . . . . Prevented . | . . . . . . . . . Parts Restored . | . . . . . . . . . Kills | -11 -10 -10 -10 -9 -8 -7 -7 -7 ------- Run | Yrd Mat Min Exi Min Mat Fac DSF Gar Combat Hostiles Destroyed 42 | . 8 7 . . 16 . 5 6 Melee 4 | . 3 . . . 1 . . . Guns 23 | . 3 2 . . 12 . . 6 Cannons 15 | . 2 5 . . 3 . 5 . Classes Destroyed 10 | 2 6 . . . 2 . . . Worker 3 | . 1 . . . 2 . . . Builder 2 | . 2 . . . . . . . Tunneler 2 | 2 . . . . . . . . Hauler 3 | . 1 . . . 1 . 1 . Recycler 5 | 1 . 1 . . 3 . . . Watcher 3 | . 2 . . . 1 . . . Swarmer 19 | . 6 . . . 4 . 3 6 Grunt 18 | . 2 7 . . 7 . 2 . Sentry 3 | . . . . . 3 . . . Hunter 2 | . . . . . 2 . . . Best Kill Streak 6 | 2 6 3 . . 4 . 3 4 Combat Bots Only 6 | . 6 2 . . 4 . 3 4 Max Kills in Single Turn 2 | 1 1 1 . . 2 . 1 2 Gunslinging . | . . . . . . . . . Exploded . | . . . . . . . . . Melee 1 | . 1 . . . 1 . . . Uniques/NPCs Destroyed . | . . . . . . . . . Combat | -11 -10 -10 -10 -9 -8 -7 -7 -7 -------- Run | Yrd Mat Min Exi Min Mat Fac DSF Gar Hostile Shots Fired 492 | . 56 53 . . 144 . 139 100 Missed 123 | . 9 16 . . 36 . 31 31 Hits 369 | . 47 37 . . 108 . 108 69 Projectile 369 | . 47 37 . . 108 . 108 69 Critical Strikes 9 | . 1 . . . 4 . 3 1 Damage Taken 5988 | 17 724 517 . . 1385 . 2313 1032 Core 1084 | . 157 72 . . 147 . 466 242 Absorbed by Shields . | . . . . . . . . . Regen/Repaired (Parts) 152 | . . . . . 152 . . . Core Remaining (%) 60 | 100 . . . 8 73 . . . Volleys Fired 184 | 7 27 27 . . 58 . 20 45 Largest 2 | 2 2 2 . . 2 . 2 2 Hottest 100 | 60 100 50 . . 78 . 88 69 Shots Fired 329 | 14 48 53 . . 106 . 37 71 Gun 229 | 14 40 26 . . 78 . . 71 Cannon 95 | . 3 27 . . 28 . 37 . Launcher . | . . . . . . . . . Special 5 | . 5 . . . . . . . Kinetic 306 | 11 43 53 . . 106 . 37 56 Thermal 20 | . 5 . . . . . . 15 Explosive . | . . . . . . . . . Electromagnetic 3 | 3 . . . . . . . . Robot Hit Streak 20 | 12 14 8 . . 9 . 5 20 Robot Miss Streak 9 | . 4 2 . . 6 . 9 9 Penetration Max 1 | . . . . . 1 . . . Secondary Targets 4 | . . . . . 3 . . 1 Max Gunslinging Chain 1 | . . . . . 1 . . 1 Shots Hit Robots 233 | 12 36 38 . . 67 . 16 64 Core Hits 133 | 5 15 15 . . 32 . 8 58 Critical Kills 6 | . 1 . . . 5 . . . Critical Parts Destroyed 6 | . 2 . . . 4 . . . Critical Strikes 14 | . 3 1 . . 9 . 1 . Destroy 9 | . 1 . . . 8 . . . Blast 2 | . . 1 . . . . 1 . Smash 3 | . 2 . . . 1 . . . Melee Attacks 63 | . 36 . . . 16 . . 11 Impact 52 | . 36 . . . 16 . . . Slashing . | . . . . . . . . . Piercing . | . . . . . . . . . Sneak Attacks 8 | . 3 . . . 4 . . 1 Combat Hostiles . | . . . . . . . . . Follow-up Attacks . | . . . . . . . . . Damage Inflicted 4275 | 156 656 535 . . 1569 . 505 854 Guns 2327 | 116 219 183 . . 955 . . 854 Cannons 1206 | . 36 352 . . 313 . 505 . Explosions 40 | 40 . . . . . . . . Melee 702 | . 401 . . . 301 . . . Ramming . | . . . . . . . . . Kinetic 3222 | 75 255 535 . . 1268 . 505 584 Thermal 310 | 40 . . . . . . . 270 Explosive . | . . . . . . . . . Electromagnetic 41 | 41 . . . . . . . . Impact 702 | . 401 . . . 301 . . . Slashing . | . . . . . . . . . Piercing . | . . . . . . . . . Highest Corruption 2 | . 2 2 2 2 . . . . Average Corruption 2 | . 2 2 2 2 . . . . Corruption Purged . | . . . . . . . . . Corruption Blocked . | . . . . . . . . . Effects 29 | . 13 9 4 3 . . . . Message Errors 9 | . 4 2 2 1 . . . . Matter Fused 5 | . 3 1 . 1 . . . . Heat Flow Errors 3 | . 1 2 . . . . . . Energy Discharges 1 | . . 1 . . . . . . Data Loss (minor) 5 | . 1 2 2 . . . . . Data Loss (major) 1 | . . . . 1 . . . . Misfires 3 | . 3 . . . . . . . Alerts 1 | . 1 . . . . . . . Weapon Failures 1 | . . 1 . . . . . . Overload Shots . | . . . . . . . . . Overflow Damage 315 | . 203 . . . 108 . 4 . Projectiles 22 | . . . . . 18 . 4 . Explosions . | . . . . . . . . . Melee 293 | . 203 . . . 90 . . . Knockbacks 16 | . 2 6 . . 6 . 2 . Impact 5 | . 2 . . . 3 . . . Kinetic 11 | . . 6 . . 3 . 2 . Secondary . | . . . . . . . . . Self-Inflicted Damage 17 | 17 . . . . . . . . Shots 1 | 1 . . . . . . . . Rammed . | . . . . . . . . . Targets Rammed . | . . . . . . . . . Kicked . | . . . . . . . . . Crushed . | . . . . . . . . . Highest Temperature 311 | 32 99 311 . . 309 . . 280 Average Temperature 85 | 20 20 111 . . 88 . . 113 Received Heat Transfer 1188 | . 123 291 . . 513 . 261 . Effects 4 | . . 3 . . 1 . . . Energy Bleed 1 | . . 1 . . . . . . Interference 3 | . . 2 . . 1 . . . Siege Activations . | . . . . . . . . . Martial Activations . | . . . . . . . . . Shielding Activations . | . . . . . . . . . Robots Disrupted . | . . . . . . . . . Combat Hostiles . | . . . . . . . . . Robots Corrupted 3 | . 3 . . . . . . . Combat Hostiles . | . . . . . . . . . Parts Fried 4 | . 3 . . . 1 . . . Impact Corruptions 14 | . 11 . . . 3 . . . Robots Melted . | . . . . . . . . . Combat Hostiles . | . . . . . . . . . Parts Melted 3 | . . . . . 1 . . 2 Heat Transferred 568 | 50 . . . . . . . 518 Parts Sabotaged . | . . . . . . . . . Parts Stolen . | . . . . . . . . . Parts Stripped . | . . . . . . . . . Power Chain Reactions 1 | 1 . . . . . . . . Alert | -11 -10 -10 -10 -9 -8 -7 -7 -7 ------- Run | Yrd Mat Min Exi Min Mat Fac DSF Gar Maximum Alert Level . | . . . . . . . . . Low Security (%) 100 | 100 100 100 . 100 100 100 100 100 Level 1 . | . . . . . . . . . Level 2 . | . . . . . . . . . Level 3 . | . . . . . . . . . Level 4 . | . . . . . . . . . Level 5 . | . . . . . . . . . High Security . | . . . . . . . . . Max Security . | . . . . . . . . . Peak Influence 171 | 10 162 95 . 23 96 32 115 171 Initial 60 | . . 60 . . . 32 . 41 Average 30 | 1 9 30 . . 39 9 58 82 Influence Increases 1455 | 15 353 215 . 23 514 . 145 190 Destroy 0b10 Robot/C 860 | . 160 140 . 20 320 . 100 120 Destroy 0b10 Robot/NC 100 | 15 30 5 . . 35 . 5 10 Destroy Leader 180 | . 36 40 . . 84 . 10 10 Allied During Kill 3 | . . . . 3 . . . . Successful Hack 40 | . 39 . . . 1 . . . Select Force Hacks 30 | . 30 . . . . . . . Disable Machine 75 | . 15 15 . . 30 . 15 . Anti-Garrison Action 50 | . . . . . . . . 50 Destroy Structure 27 | . 13 . . . 14 . . . Partial Spotted 15 | . . . . . 15 . . . Lose Combat Pursuer 75 | . 30 15 . . 15 . 15 . Influence Decreases 1324 | 15 199 369 . 23 443 71 90 114 Entered New Map 147 | . . 94 . . . 39 . 14 Time Decay 763 | 15 178 225 . 3 310 32 . . Lost Part 315 | . 15 50 . . 80 . 90 80 Lost Ally 40 | . . . . 20 . . . 20 Purge Threat 59 | . 6 . . . 53 . . . Squads Dispatched 8 | . 2 . . . 4 . 2 . Investigation 6 | . 2 . . . 4 . . . Extermination . | . . . . . . . . . Reinforcement 2 | . . . . . . . 2 . Assault . | . . . . . . . . . Garrison . | . . . . . . . . . Intercept . | . . . . . . . . . Searches Triggered . | . . . . . . . . . Construction Impeded . | . . . . . . . . . Haulers Reinforced . | . . . . . . . . . Active Scanning Responses . | . . . . . . . . . Cargo Convoy Interrupts . | . . . . . . . . . Stealth | -11 -10 -10 -10 -9 -8 -7 -7 -7 --------- Run | Yrd Mat Min Exi Min Mat Fac DSF Gar Distress Signals 3 | . 3 . . . . . . . Communications Jammed . | . . . . . . . . . Distress Signals . | . . . . . . . . . Times Spotted 70 | . 15 8 . . 21 . 13 13 Peak Tracking Total 6 | . 6 2 . . 5 . 6 6 Tactical Retreats 4 | . 1 1 . . 1 . 1 . Traps | -11 -10 -10 -10 -9 -8 -7 -7 -7 ------- Run | Yrd Mat Min Exi Min Mat Fac DSF Gar Traps Triggered 4 | . 1 . . . 2 . 1 . Indirectly . | . . . . . . . . . Trap Hack Attempts . | . . . . . . . . . Triggered . | . . . . . . . . . Disarmed . | . . . . . . . . . Reprogrammed . | . . . . . . . . . Reused . | . . . . . . . . . Traps Extracted . | . . . . . . . . . Installed . | . . . . . . . . . Triggered . | . . . . . . . . . Machines | -11 -10 -10 -10 -9 -8 -7 -7 -7 ---------- Run | Yrd Mat Min Exi Min Mat Fac DSF Gar Machines Disabled 6 | . 1 1 . . 2 . 1 1 Max in Single Turn 1 | . 1 1 . . 1 . 1 1 Garrison Relay 1 | . . . . . . . . 1 Machines Repaired . | . . . . . . . . . Machines Dismantled . | . . . . . . . . . Machines Sabotaged . | . . . . . . . . . Overloaded Fab Kills . | . . . . . . . . . Hacking | -11 -10 -10 -10 -9 -8 -7 -7 -7 --------- Run | Yrd Mat Min Exi Min Mat Fac DSF Gar Machines Accessed 12 | . 6 . . . 5 1 . . Terminals 8 | . 5 . . . 2 1 . . Fabricators . | . . . . . . . . . Repair Stations 2 | . . . . . 2 . . . Recycling Units 1 | . 1 . . . . . . . Scanalyzers 1 | . . . . . 1 . . . Garrison Access . | . . . . . . . . . Total Hacks 39 | . 20 . . . 17 2 . . Successful 20 | . 10 . . . 9 1 . . Failed 18 | . 10 . . . 7 1 . . Catastrophic 4 | . 4 . . . . . . . Database Lockouts 1 | . . . . . 1 . . . Manual 24 | . 18 . . . 6 . . . Terminals 28 | . 18 . . . 8 2 . . Fabricators . | . . . . . . . . . Repair Stations 4 | . . . . . 4 . . . Recycling Units 2 | . 2 . . . . . . . Scanalyzers 5 | . . . . . 5 . . . Garrison Access . | . . . . . . . . . Terminal Hacks 7 | . 4 . . . 2 1 . . Open DSF 1 | . . . . . . 1 . . Branch Access Points 1 | . 1 . . . . . . . Emergency Access Points 2 | . 1 . . . 1 . . . Unreport Threat 3 | . 2 . . . 1 . . . Fabricator Hacks . | . . . . . . . . . Repair Station Hacks 2 | . . . . . 2 . . . Scan Component 1 | . . . . . 1 . . . Repair 1 | . . . . . 1 . . . Recycling Unit Hacks . | . . . . . . . . . Scanalyzer 3 | . . . . . 3 . . . Insert Component 1 | . . . . . 1 . . . Analyze 1 | . . . . . 1 . . . Retrieve Study 1 | . . . . . 1 . . . Garrison Access Hacks . | . . . . . . . . . Unauthorized Hacks 8 | . 6 . . . 2 . . . Terminals 7 | . 5 . . . 2 . . . Botnet 6 | . 4 . . . 2 . . . Operators 1 | . 1 . . . . . . . Fabricators . | . . . . . . . . . Repair Stations . | . . . . . . . . . Recycling Units 1 | . 1 . . . . . . . Tunnel 1 | . 1 . . . . . . . Scanalyzers . | . . . . . . . . . Garrison Access . | . . . . . . . . . Data Cores Recovered . | . . . . . . . . . Used . | . . . . . . . . . Hacking Detections 11 | . 6 . . . 4 1 . . Full Trace Events 7 | . 4 . . . 3 . . . Feedback Events . | . . . . . . . . . Feedback Blocked . | . . . . . . . . . Robot Schematics Acquired . | . . . . . . . . . Robots Built . | . . . . . . . . . Authchips . | . . . . . . . . . Time . | . . . . . . . . . Total Robot Build Rating . | . . . . . . . . . Part Schematics Acquired 1 | . . . . . 1 . . . Parts Built . | . . . . . . . . . Authchips . | . . . . . . . . . Time . | . . . . . . . . . Total Part Build Rating . | . . . . . . . . . Part Studies Acquired 1 | . . . . . 1 . . . Parts Repaired 1 | . . . . . 1 . . . Time 50 | . . . . . 50 . . . Parts Recycled . | . . . . . . . . . Recycled Matter . | . . . . . . . . . Retrieved Matter . | . . . . . . . . . Retrieved Components . | . . . . . . . . . Parts Scanalyzed 1 | . . . . . 1 . . . Part Schematics Acquired 1 | . . . . . 1 . . . Parts Damaged . | . . . . . . . . . Bothacking | -11 -10 -10 -10 -9 -8 -7 -7 -7 ------------ Run | Yrd Mat Min Exi Min Mat Fac DSF Gar Used RIF Installer 1 | . . . . . . . . 1 Robots Hacked 6 | . . . . . . . . 6 Non-combat . | . . . . . . . . . Combat 6 | . . . . . . . . 6 Robot Hacks Applied 7 | . . . . . . . . 7 find_shortcuts 1 | . . . . . . . . 1 focus_fire 2 | . . . . . . . . 2 broadcast_data 1 | . . . . . . . . 1 overwrite_iff 3 | . . . . . . . . 3 Relay Couplers Released 5 | . . . . . . . . 5 Machine Destruction 5 | . . . . . . . . 5 Attached 1 | . . . . . . . . 1 Fabnet Peak Effective % . | . . . . . . . . . Robots Rewired . | . . . . . . . . . Allies Hacked . | . . . . . . . . . Hacks Repelled . | . . . . . . . . . Allies | -11 -10 -10 -10 -9 -8 -7 -7 -7 -------- Run | Yrd Mat Min Exi Min Mat Fac DSF Gar Total Allies 6 | . . . . 3 . . . 3 Largest Group 3 | . . . . 3 . . . 3 Highest-Rated Group 40 | . . . . 40 . . . 36 Highest-Rated Ally 16 | . . . . 16 . . . 12 Total Orders 1 | . . . . 1 . . . . ROAM 1 | . . . . 1 . . . . Ally Attacks 12 | . . . . 5 . . . 7 Total Damage 73 | . . . . 41 . . . 32 Kills 1 | . . . . 1 . . . . Allies Corrupted . | . . . . . . . . . Allies Melted . | . . . . . . . . . Intel | -11 -10 -10 -10 -9 -8 -7 -7 -7 ------- Run | Yrd Mat Min Exi Min Mat Fac DSF Gar Active Infowar (turns) 2310 | 26 664 . . . 1410 146 63 1 Optics 475 | . . . . . 266 146 63 . Sensors 1 | . . . . . . . . 1 Terrain 1239 | . . . . . 1239 . . . Seismic 1353 | 26 664 . . . 663 . . . Robot Analysis Total . | . . . . . . . . . Derelict Logs Recovered 1 | . . 1 . . . . . . Drone Launches . | . . . . . . . . . Drone Recoveries . | . . . . . . . . . Exploration | -11 -10 -10 -10 -9 -8 -7 -7 -7 ------------- Run | Yrd Mat Min Exi Min Mat Fac DSF Gar Turns Passed 5155 | 99 1587 618 224 282 1411 146 236 552 Spaces Moved 2531 | 46 711 345 231 160 529 72 59 378 Core 207 | . . . . . . . 2 205 Treads 1061 | 24 711 23 . . 213 72 18 . Legs 38 | 22 . . . . . . 16 . Wheels 1052 | . . 322 231 160 316 . 23 . Hover . | . . . . . . . . . Flight 173 | . . . . . . . . 173 Fastest Speed 29 | 120 160 95 95 95 110 200 110 29 Average Speed 133 | 140 160 104 95 95 149 200 264 91 Slowest Speed 1000 | 160 160 240 95 95 240 200 1000 500 Overloaded Moves . | . . . . . . . . . Propulsion Burnouts . | . . . . . . . . . Robots Hopped . | . . . . . . . . . Potential Cave-ins . | . . . . . . . . . Cave-ins Triggered 1 | . 1 . . . . . . . Exploration Rate (%) 36 | 4 71 60 54 35 32 2 47 19 Regions Visited 8 Branch Regions 3 Pre-discovered Areas 2 | . 1 1 . . . . . . Known Exits Taken 5 | . 1 1 1 . 1 1 . . Unknown Exits Taken 2 | 1 . . . 1 . . . . Scrap Searched 2 | . . 1 . 1 . . . . Spaces Dug 19 | . 14 . . . 5 . . . Terrain Destroyed 39 | 2 14 . . . 23 . . . Melee 17 | . 12 . . . 5 . . . Projectile 20 | . 2 . . . 18 . . . AOE 2 | 2 . . . . . . . . Terrain Rammed . | . . . . . . . . . Walls Destroyed . | . . . . . . . . . Machines Disabled . | . . . . . . . . . Actions | -11 -10 -10 -10 -9 -8 -7 -7 -7 --------- Run | Yrd Mat Min Exi Min Mat Fac DSF Gar Total 3905 | 68 1052 549 236 287 1021 75 106 511 Wait 901 | 4 246 171 . 121 335 . 1 23 Move 2523 | 45 710 344 230 159 528 71 58 378 Hop . | . . . . . . . . . Pick Up 61 | 5 13 1 1 1 18 2 8 12 Fast Attach 33 | 1 . 2 . . 13 . 3 14 Attach 29 | . 2 3 1 1 5 2 5 10 Detach 5 | . . . 1 . . . . 4 Swap 54 | 3 10 1 1 5 25 . 4 5 Drop 50 | 3 8 . 2 . 23 . 5 9 Fire 184 | 7 27 27 . . 58 . 20 45 Melee 63 | . 36 . . . 16 . . 11 Ram . | . . . . . . . . . Kick . | . . . . . . . . . Crush . | . . . . . . . . . Escape Stasis 2 | . . . . . . . 2 . Rewire . | . . . . . . . . . Trap . | . . . . . . . . . Miscellaneous . | . . . . . . . . . Route ------- -11/Scrapyard -10/Materials (discovered 4 exits: *Mat / *Min x2 / *Sub) -10/Mines -10/Exiles (discovered 2 exits: *Min x2) -9/Mines -8/Materials -7/Factory -7/DSF -7/Garrison History --------- Turn | Location | Event 6 | -11/Scrapyard | Discovered new exit (range 3) 100 | -11/Scrapyard | Entered Materials 305 | -10/Materials | Build established: Mutant 376 | -10/Materials | Discovered new exit (range 16) 629 | -10/Materials | Identified exit to Materials 752 | -10/Materials | Crushed by falling debris 841 | -10/Materials | Discovered new exit (range 11) 997 | -10/Materials | Identified exit to Subcaves 1125 | -10/Materials | Identified exit to Mines 1500 | -10/Materials | Derelicts attacked the area 1606 | -10/Materials | Core integrity fell below 50% 1687 | -10/Materials | Entered Mines 1784 | -10/Mines | Met a Derelict bent on vengeance 1786 | -10/Mines | Core integrity fell below 20% 1836 | -10/Mines | Lost 3 parts (1p1n1w) 1859 | -10/Mines | Deemed a non-threat by the Exiles lab entrance 1860 | -10/Mines | Discovered new exit (range 5) 1862 | -10/Mines | Identified exit to Exiles 2089 | -10/Mines | Learned location of Storage (-9) 2120 | -10/Mines | Found a hidden stash of uninstalled traps 2169 | -10/Mines | Assembled infested the area 2176 | -10/Mines | A weapon hastily lodged in a ceiling crevice suddenly fell to the ground 2305 | -10/Mines | Entered Exiles 2327 | -10/Exiles | Met 8R-AWN 2346 | -10/Exiles | Discovered new exit (range 15) 2357 | -10/Exiles | Identified exit to Mines 2391 | -10/Exiles | Met EX-HEX 2428 | -10/Exiles | Met EX-DEC 2520 | -10/Exiles | Discovered exit to Mines (range 11) 2529 | -10/Exiles | Entered Mines 2627 | -9/Mines | Assisted by bots powering up and referring to "LRC-V3" 2716 | -9/Mines | Discovered new exit (range 10) 2811 | -9/Mines | Entered Materials 2811 | -8/Materials | Evolved 4 slots: Power x1, Utility x3 3115 | -8/Materials | Build established: Scavenger-Mutant 3512 | -8/Materials | Lost 4 parts (2n2u) 3678 | -8/Materials | Repaired Bore Cannon? 3689 | -8/Materials | Lost 3 parts (1p2u) 3982 | -8/Materials | Discovered new exit (range 8) 4057 | -8/Materials | Identified exit to Factory 4103 | -8/Materials | Central database locked down 4222 | -8/Materials | Entered Factory 4222 | -7/Factory | Evolved 2 slots: Propulsion x2 4368 | -7/Factory | Identified exit to DSF 4368 | -7/Factory | Entered DSF 4399 | -7/DSF | Discovered new exit (range 18) 4421 | -7/DSF | Additional patrols routed to DSF 4462 | -7/DSF | Lost 7 parts (2p3n2u) 4519 | -7/DSF | Lost 3 parts (2n1w) 4561 | -7/DSF | Identified exit to Garrison 4602 | -7/DSF | Core integrity fell below 50% 4604 | -7/DSF | Entered Garrison 4619 | -7/Garrison | Installed Relay Interface Framework 4635 | -7/Garrison | Lost 6 parts (1p1n2u2w) 4739 | -7/Garrison | Build established: Mutant 4859 | -7/Garrison | Triggered checkpoint 5061 | -7/Garrison | Garrison Relay disabled 5131 | -7/Garrison | Core integrity fell below 20% 5156 | -7/Garrison | Destroyed by S-27 Virus with Autogun Last Messages --------------- 05122_ Lgt. Deuterium Engine destroyed. 05123_ Jacked S-27 Virus... >>focus_fire Set priority target: LRC-V3. 05123_ S-27 Virus destroyed. 05125_ VTOL Module destroyed. 05127_ Jacked S-27 Virus... >>focus_fire Set priority target: LRC-V3. 05129_ Acquired VTOL Module. 05130_ Acquired 29 matter. 05131_ Acquired VTOL Module. 05133_ VTOL Module destroyed. 05134_ S-27 Virus destroyed. 05136_ Slug penetrates S-27 Virus. 05139_ Acquired Autogun. 05139_ VTOL Module destroyed. 05143_ Slug penetrates S-27 Virus. 05143_ S-27 Virus destroyed. 05153_ Acquired 22 matter. Map ----- +----------------------------------------------------+ | ?????????????????????????????????????????????????? | | ?????????????????????????????????????????????????? | | ?????????????????????????????????????????????????? | | ?????????????????????????????????????????????????? | | ?????????????????????????????????????????????????? | | ?????????????????????????????????????????????????? | | ?????????????????????????????????????????????????? | | ?????????????????????????????????????????????????? | | ?????????????????????????????????????????????????? | | ?????????????????????????????????????????????????? | | ?????????????????????????????????????????????????? | | ?????????????# ??????????????????????????????????? | | ????????????? ?????????????????????????????????? | | ??????? ?? ?????????????????????????????????? | | ??????? ?? ?????????????????????????????????? | | ???????# ?# ?????????????????????????????????? | | ???????# ## ?????????????????????????????????? | | ??????? ????????????????????????????????? | | ???????? ????????????????????????????????? | | ???? ???? ????????????????????????????????? | | ?????? ???? ????????????????????????????????? | | ???????# ???# ????????????????????????????????? | | ??? ## ##^ ############????????????????????? | | ??# = #????????????????????? | | ??# *%[ [=*#????????????????????? | | ??# = =@=%#????????????????????? | | ??????## #############/[%#????????????????????? | | ???????#????????????????# * #????????????????????? | | ????????????????????????# #????????????????????? | | ????????????????????????#s #????????????????????? | | ????????????????????????# #????????????????????? | | ????????????????????????# #????????????????????? | | ????????????????????????# #????????????????????? | | ????????????????????????+ #????????????????????? | | ????????????????????????+ #????????????????????? | | ????????????????????????# #????????????????????? | | ????????????????????????# #????????????????????? | | ????????????????????????# #????????????????????? | | ????????????????????????# #????????????????????? | | ????????????????????????# #????????????????????? | | ????????????????????????# #????????????????????? | | ????????????????????????# #????????????????????? | | ????????????????????????# #????????????????????? | | ????????????????????????# ###################### | | ????????????????????????# | | ????????????????????????# | | ????????????????????????# | | ????????????????????????################# #### | | ????????????????????????????????????????# #??# | | ????????????????????????################# #??# | +----------------------------------------------------+ Best States ------------- Heat Dissipation 34 Energy Generation 25 Energy Capacity 465 Matter Stores 300 Matter Capacity 450 Sight Range 18 Terrain Scan Range 16 Terrain Scan Density 10 Armor Coverage 225 Evasion (%) 64 Targeting Accuracy 5 Armor Integrity Analysis 30 Recoil Reduction 2 Energy Filtering 45 Offensive Hacking 10 Relay Coupler Types 1 Relay Coupler Value 27 Item Schematics ----------------- Bore Cannon | -8/Materials | Scanalyzed Robot Schematics ------------------ None Fabricated ------------ Nothing Repaired ---------- Bore Cannon | 7% | -8/Materials Studied --------- Lgt. Treads | -8/Materials | Hacked Alien Tech Used ----------------- None Achievements -------------- None Challenges ------------ None Game ------ Seed CargoSwordFlail Manual? 0 Play Time 00:37:15 Cumulative 35.4 hours Start 2025.12.27 @ 15:58:54 End 2025.12.27 @ 16:36:55 Sessions 1 Manual Loads 0 Difficulty Rogue Special Mode None Game No. 42 Rogue 42 Adventurer 0 Explorer 0 Win Type - Total 1 Types 1/0/0/0/0/0/0/0/0/0 Lore% 26 Gallery% 39 Achievement% 30 Wizard Run 0 Options --------- Layout 2 ASCII 0 Keyboard 1 Movement Numpad Keybinds 0 Fullscreen 1 Font 24/Smallcaps Map View 50x44 Zoom Use 0% Tactical HUD 1 Map Filters NONE Filters NONE Steam 1 RUN: 84cde5c9-8dd4-496f-b368-2803bc852958